Cogmind - Beta 15 @@@ ROGUE MODE // 2025.10.21 @ 04:57:48 // Winter2022/Polymind Player: NQH Result: Destroyed by G-34 Mercenary with Small Laser Performance ------------- Evolutions (0) 0 Regions Visited (1) 200 Robots Destroyed (7) 35 Value Destroyed (264) 264 Prototype IDs (2) 40 Alien Tech Used (0) 0 Bonus (550) 550 TOTAL SCORE: 669 Bonus ------- Polymind Skill 550 Cogmind --------- Core Integrity 0/250 Matter 0/0 Energy 196/200 System Corruption 0% Temperature Cool (8) Movement Walking (120) Location -10/Materials Parts ------- > --- POWER (1) -------- Ion Engine > --- PROPULSION (2) --- Aluminum Leg Aluminum Leg > --- UTILITY (1) ------ Heat Sink > --- WEAPON (1) ------- Small Laser > --- INVENTORY (1) ---- (None) Peak State ------------ > --- POWER ------------ Light Ion Engine > --- PROPULSION ------- Wheel Wheel > --- UTILITY ---------- Improved Terrain Scanner Seismic Detector > --- WEAPON ----------- Mining Laser > --- INVENTORY -------- (None) [Rating: 8] Favorites ----------- Power Ion Engine Engine Ion Engine Propulsion Aluminum Leg Leg Aluminum Leg Wheel Wheel Hover Unit Backup Propulsion I Utility Heat Sink Device Heat Sink Protection Backup Plating I Weapon Small Laser Energy Gun Small Laser Special Weapon Mining Laser Build | -11 -10 ------- Run | Yrd Mat Slots Evolved . | . . Power . | . . Propulsion . | . . Utility . | . . Weapon . | . . Parts Attached . | . . Power . | . . Engine . | . . Core . | . . Reactor . | . . Propulsion . | . . Treads . | . . Leg . | . . Wheel . | . . Hover . | . . Flight . | . . Utility . | . . Device . | . . Storage . | . . Processor . | . . Hackware . | . . Protection . | . . Artifact . | . . Weapon . | . . Energy Gun . | . . Energy Cannon . | . . Ballistic Gun . | . . Ballistic Cannon . | . . Launcher . | . . Special Weapon . | . . Impact Weapon . | . . Slashing Weapon . | . . Piercing Weapon . | . . Special Melee Weapon . | . . Unidentified Prototypes . | . . Parts Lost 6 | . 6 Power 1 | . 1 Propulsion 3 | . 3 Utility 1 | . 1 Weapon 1 | . 1 Highest Loss Streak 4 | . 4 To Critical Strikes . | . . Average Backups . | . . Power . | . . Propulsion . | . . Utility . | . . Weapon . | . . Tool/Special . | . . Unused Backups . | . . Power . | . . Propulsion . | . . Utility . | . . Weapon . | . . Tool/Special . | . . Average Slot Usage (%) 71 | . 71 Engine 11 | . 11 Leg 17 | . 17 Wheel 4 | . 4 Hover 4 | . 4 Device 13 | . 13 Protection 2 | . 2 Energy Gun 14 | . 14 Special Weapon 2 | . 2 Peak Build Rating 8 | . 8 Average Rating 4 | . 4 On Entrance . | . . Naked Turns 26 | . 26 Heaviest Build 7 | . 7 Greatest Support 20 | 3 20 Greatest Overweight (x) . | . . Average Overweight (x) . | . . Largest Inventory Capacity 1 | . 1 Average Capacity . | . . Most Carried . | . . Average Carried . | . . Final Capacity 1 | . 1 Final Carried . | . . Class Distribution -------------------- 79% | Grunt 13% | Tunneler 7% | Cogmind Dominant Class ---------------- Grunt | -10/Materials Resources | -11 -10 ----------- Run | Yrd Mat Matter Collected . | . . Remotely . | . . Salvage Created 243 | . 243 Parts 14 | . 14 Haulers Intercepted . | . . Recyclers Shooed 1 | . 1 Parts Field Recycled . | . . Retrieved Matter . | . . Parts Self-Destructed . | . . Prevented . | . . Kills | -11 -10 ------- Run | Yrd Mat Combat Hostiles Destroyed 7 | . 7 Guns 7 | . 7 Classes Destroyed 1 | . 1 Grunt 7 | . 7 Best Kill Streak 3 | . 3 Combat Bots Only 3 | . 3 Max Kills in Single Turn 1 | . 1 Gunslinging . | . . Exploded . | . . Melee . | . . Uniques/NPCs Destroyed . | . . Combat | -11 -10 -------- Run | Yrd Mat Hostile Shots Fired 76 | . 76 Missed 13 | . 13 Hits 63 | . 63 Projectile 63 | . 63 Damage Taken 785 | . 785 Core 259 | . 259 Absorbed by Shields . | . . Core Remaining (%) 100 | 100 . Volleys Fired 67 | . 67 Largest 1 | . 1 Hottest 100 | . 100 Shots Fired 67 | . 67 Gun 60 | . 60 Cannon . | . . Launcher . | . . Special 7 | . 7 Kinetic . | . . Thermal 67 | . 67 Explosive . | . . Electromagnetic . | . . Robot Hit Streak 7 | . 7 Robot Miss Streak 3 | . 3 Penetration Max . | . . Secondary Targets . | . . Shots Hit Robots 41 | . 41 Core Hits 17 | . 17 Critical Kills . | . . Critical Parts Destroyed . | . . Critical Strikes . | . . Melee Attacks . | . . Impact . | . . Slashing . | . . Piercing . | . . Sneak Attacks . | . . Combat Hostiles . | . . Follow-up Attacks . | . . Damage Inflicted 502 | . 502 Guns 467 | . 467 Cannons . | . . Explosions . | . . Melee . | . . Ramming 9 | . 9 Kinetic . | . . Thermal 493 | . 493 Explosive . | . . Electromagnetic . | . . Impact . | . . Slashing . | . . Piercing . | . . Highest Corruption . | . . Average Corruption . | . . Corruption Purged . | . . Corruption Blocked . | . . Overload Shots . | . . Overflow Damage 1 | . 1 Projectiles 1 | . 1 Explosions . | . . Melee . | . . Knockbacks . | . . Impact . | . . Kinetic . | . . Secondary . | . . Self-Inflicted Damage . | . . Shots . | . . Rammed 2 | . 2 Targets Rammed 10 | . 10 Kicked 8 | . 8 Crushed . | . . Highest Temperature 427 | . 427 Average Temperature 129 | . 129 Received Heat Transfer 432 | . 432 Effects 4 | . 4 Shutdowns 2 | . 2 Short Circuit 1 | . 1 Damage (minor) 1 | . 1 Siege Activations . | . . Martial Activations . | . . Shielding Activations . | . . Robots Disrupted . | . . Combat Hostiles . | . . Robots Corrupted . | . . Combat Hostiles . | . . Parts Fried . | . . Impact Corruptions . | . . Robots Melted . | . . Combat Hostiles . | . . Parts Melted 2 | . 2 Heat Transferred 1050 | . 1050 Parts Sabotaged . | . . Parts Stolen . | . . Parts Stripped . | . . Power Chain Reactions . | . . Alert | -11 -10 ------- Run | Yrd Mat Maximum Alert Level . | . . Low Security (%) 100 | 100 100 Level 1 . | . . Level 2 . | . . Level 3 . | . . Level 4 . | . . Level 5 . | . . High Security . | . . Max Security . | . . Peak Influence 65 | . 65 Initial . | . . Average 19 | . 20 Influence Increases 211 | . 211 Destroy 0b10 Robot/C 140 | . 140 Destroy Leader 40 | . 40 Destroy Structure 1 | . 1 Lose Combat Pursuer 30 | . 30 Influence Decreases 176 | . 176 Time Decay 133 | . 133 Lost Part 40 | . 40 Miscellaneous 3 | . 3 Squads Dispatched 3 | . 3 Investigation 3 | . 3 Extermination . | . . Reinforcement . | . . Assault . | . . Garrison . | . . Intercept . | . . Searches Triggered . | . . Construction Impeded . | . . Haulers Reinforced . | . . Active Scanning Responses . | . . Cargo Convoy Interrupts . | . . Stealth | -11 -10 --------- Run | Yrd Mat Distress Signals . | . . Communications Jammed . | . . Distress Signals . | . . Times Spotted 28 | . 28 Peak Tracking Total 6 | . 6 Tactical Retreats 2 | . 2 Traps | -11 -10 ------- Run | Yrd Mat Traps Triggered 2 | . 2 Indirectly . | . . Trap Hack Attempts . | . . Triggered . | . . Disarmed . | . . Reprogrammed . | . . Reused . | . . Traps Extracted . | . . Installed . | . . Triggered . | . . Machines | -11 -10 ---------- Run | Yrd Mat Machines Disabled . | . . Max in Single Turn . | . . Machines Repaired . | . . Machines Dismantled . | . . Machines Sabotaged . | . . Overloaded Fab Kills . | . . Hacking | -11 -10 --------- Run | Yrd Mat Machines Accessed 2 | . 2 Terminals 2 | . 2 Fabricators . | . . Repair Stations . | . . Recycling Units . | . . Scanalyzers . | . . Garrison Access . | . . Total Hacks 4 | . 4 Successful 1 | . 1 Failed 3 | . 3 Catastrophic 2 | . 2 Database Lockouts . | . . Manual 3 | . 3 Terminals 4 | . 4 Fabricators . | . . Repair Stations . | . . Recycling Units . | . . Scanalyzers . | . . Garrison Access . | . . Terminal Hacks 1 | . 1 Prototype ID Bank 1 | . 1 Fabricator Hacks . | . . Repair Station Hacks . | . . Recycling Unit Hacks . | . . Scanalyzer . | . . Garrison Access Hacks . | . . Unauthorized Hacks . | . . Terminals . | . . Fabricators . | . . Repair Stations . | . . Recycling Units . | . . Scanalyzers . | . . Garrison Access . | . . Data Cores Recovered . | . . Used . | . . Hacking Detections 2 | . 2 Full Trace Events 1 | . 1 Feedback Events . | . . Feedback Blocked . | . . Robot Schematics Acquired . | . . Robots Built . | . . Authchips . | . . Time . | . . Total Robot Build Rating . | . . Part Schematics Acquired . | . . Parts Built . | . . Authchips . | . . Time . | . . Total Part Build Rating . | . . Parts Repaired . | . . Time . | . . Parts Recycled . | . . Recycled Matter . | . . Retrieved Matter . | . . Retrieved Components . | . . Parts Scanalyzed . | . . Part Schematics Acquired . | . . Parts Damaged . | . . Bothacking | -11 -10 ------------ Run | Yrd Mat Used RIF Installer . | . . Robots Hacked 3 | . 3 Non-combat . | . . Combat 3 | . 3 Robot Hacks Applied 3 | . 3 find_shortcuts 3 | . 3 Relay Couplers Released . | . . Fabnet Peak Effective % . | . . Robots Rewired . | . . Allies Hacked . | . . Hacks Repelled . | . . Allies | -11 -10 -------- Run | Yrd Mat Total Allies . | . . Largest Group . | . . Highest-Rated Group . | . . Highest-Rated Ally . | . . Total Orders . | . . Ally Attacks . | . . Total Damage . | . . Kills . | . . Allies Corrupted . | . . Allies Melted . | . . Intel | -11 -10 ------- Run | Yrd Mat Active Infowar (turns) 51 | . 51 Terrain 46 | . 46 Seismic 51 | . 51 Robot Analysis Total 2 | . 2 Derelict Logs Recovered . | . . Drone Launches . | . . Drone Recoveries . | . . Exploration | -11 -10 ------------- Run | Yrd Mat Turns Passed 384 | 13 371 Spaces Moved 241 | 23 218 Core 129 | 23 106 Treads . | . . Legs 92 | . 92 Wheels 6 | . 6 Hover 14 | . 14 Flight . | . . Fastest Speed 50 | 50 50 Average Speed 78 | 50 82 Slowest Speed 120 | 50 120 Overloaded Moves . | . . Propulsion Burnouts . | . . Robots Hopped . | . . Potential Cave-ins . | . . Cave-ins Triggered . | . . Exploration Rate (%) 22 | 3 42 Regions Visited 1 Branch Regions . Pre-discovered Areas . | . . Known Exits Taken . | . . Unknown Exits Taken 1 | 1 . Scrap Searched . | . . Spaces Dug . | . . Terrain Destroyed 1 | . 1 Melee . | . . Projectile 1 | . 1 AOE . | . . Terrain Rammed . | . . Walls Destroyed . | . . Machines Disabled . | . . Actions | -11 -10 --------- Run | Yrd Mat Total 351 | 23 328 Wait 30 | 1 29 Move 240 | 22 218 Hop . | . . Pick Up . | . . Fast Attach . | . . Attach . | . . Detach . | . . Swap . | . . Drop . | . . Fire 67 | . 67 Melee . | . . Ram 2 | . 2 Kick 8 | . 8 Crush . | . . Escape Stasis . | . . Rewire 4 | . 4 Trap . | . . Miscellaneous . | . . Route ------- -11/Scrapyard -10/Materials (discovered 1 exit: [*Mat]) History --------- Turn | Location | Event 4 | -11/Scrapyard | Discovered new exit (range 16) 14 | -11/Scrapyard | Entered Materials 168 | -10/Materials | Lost 4 parts (1p2n1u) 236 | -10/Materials | Core integrity fell below 50% 292 | -10/Materials | Core integrity fell below 20% 378 | -10/Materials | Discovered new exit (range 9) 385 | -10/Materials | Destroyed by G-34 Mercenary with Small Laser Last Messages --------------- 00286_ Backup Propulsion I destroyed. 00288_ R-06 Scavenger collects Sml. Laser. 00289_ G-34 Mercenary destroyed. 00291_ R-06 Scavenger collects Aluminum Leg. 00295_ Overheating: Backup Plating I damaged (-5). 00297_ Sml. Laser destroyed. 00297_ Released control of G-34 Mercenary. 00297_ Attempting to rewire G-34 Mercenary. 00297_ G-34 Mercenary is rebooting, system inaccessible. 00298_ G-34 Mercenary reactivates. 00300_ Took control of G-34 Mercenary. 00318_ Heat Sink melted. 00318_ G-34 Mercenary destroyed. 00321_ R-06 Scavenger collects Heat Sink. 00378_ EXIT=FOUND 00385_ Triggered Alarm Trap. 00385_ An alarm sounds. 00385_ ALERT: Alarm triggered, dispatching investigation squad. Map ----- +----------------------------------------------------+ | | | | | | | | | | | | | | | | | | | | | | | | | | | ?????????????????????????????????????????????????? | | ?????????#???????????????????????????????????????? | | #????????????????????????????????????????????????? | | ????#????????????????????????????????????????????? | | ########??????????#??#???????????????????????????? | | !# ##????##########??????????????????????????? | | # #????# #??????????????????????????? | | " #??### """ ######?????????????????????? | | ! # #?#??# """ ## #?????????????????????? | | # # #???# """ ##gg #?????????????????????? | | ###########??# ## g #?????????????????????? | | ?????????????# """ ## +?????????????????????? | | ############## """ ## g #?????????????????????? | | + """ ## #?????????????????????? | | ##### ######## ## ##????????????????????? | | #####+###????######+### #????????????????????? | | #??????# #????????????+???????? | | #?#????# T #????????????????????? | | #??????# #????????????????????? | | #??????# #????????????????????? | | #########??????# ######????????????????????? | | ###########????# ?????????????????????????? | | ?? r ????????????????????????? | | #????????### ???????????????????????? | | #??????????# ########??????????????????????? | | #??????????# #?????????????????????????????? | | #???######## #?????????????????????????????? | | #???#! # #?????????????????????????????? | | #???# # #?????????????????????????????? | | #???# """" + #?????????????????????????????? | | ##### """" # #?????????????????????????????? | | + """" # / """ ????????????????????????? | | ##### # # """ ????????????????????????? | | # #???#####+## #?""" ????????????????????????? | | # #???????# ## #??? ????????????????????????? | | # #??????+ ## #?????????????????????????????? | | # #???????#### #?????????????????????????????? | +----------------------------------------------------+ Best States ------------- Heat Dissipation 25 Energy Generation 15 Energy Capacity 200 Sight Range 16 Terrain Scan Range 16 Terrain Scan Density 10 Armor Coverage 80 Evasion (%) 55 Item Schematics ----------------- None Robot Schematics ------------------ None Fabricated ------------ Nothing Repaired ---------- Nothing Alien Tech Used ----------------- None Achievements -------------- None Challenges ------------ None Polymind | -11 -10 ---------- Run | Yrd Mat Hosts 4 | . 4 Combat Hostiles 3 | . 3 Allies . | . . Unique Host Classes 2 | . 2 Average Host Suspicion 99 | . 99 Unsuspicious Activity 7 | . 7 Returns to Shadow . | . . Fuzzy Dispatches . | . . Protomatter Created 29 | . 29 Used 50 | . 50 Decayed . | . . Highest Spend 15 | . 15 Top 5 Hosts by Kills: G-34 Mercenary (-10/Materials: 3) G-34 Mercenary (-10/Materials: 3) G-34 Mercenary (-10/Materials: 1) Game ------ Seed CoilSalvagingWarhead Manual? 0 Play Time 00:06:19 Cumulative 36.5 hours Start 2025.10.21 @ 04:54:21 End 2025.10.21 @ 04:57:48 Sessions 1 Manual Loads 0 Difficulty Rogue Special Mode Winter2022/Polymind Game No. 142 Rogue 142 Adventurer 0 Explorer 0 Win Type - Total 0 Types 0/0/0/0/0/0/0/0/0/0 Lore% 11 Gallery% 32 Achievement% 31 Wizard Run 0 Options --------- Layout 1 ASCII 0 Keyboard 1 Movement Vi Keybinds 0 Fullscreen 1 Font 16/SmallcapsGlow Map View 55x38 Zoom Use 0% Tactical HUD 1 Map Filters NONE Filters NONE Steam 1 RUN: 459e3ee1-373b-4acd-9a55-443180bcaa26